bitfinex/quotes_BTCUSD_20251114
["timestamp","ask_amount","ask_price","bid_price","bid_amount"]
[1763112900043,0.001,96791.0,96786.0,0.01222]
[1763112900240,0.00952672,96790.0,96788.0,0.20663585]
[1763112900446,0.00952672,96789.0,96787.0,0.20663932]
[1763112900668,0.00952868,96788.0,96787.0,0.20663932]
[1763112901047,0.0219553,96806.0,96805.0,0.20660089]
[1763112901252,0.02858743,96806.0,96805.0,0.22186089]
[1763112901467,0.42078986,96830.0,96820.0,0.02]
[1763112901468,0.01032737,96830.0,96820.0,0.02]
[1763112901644,0.09761561,96821.0,96812.0,0.20658416]
[1763112901843,0.20653505,96836.0,96815.0,0.20657941]
[1763112902044,0.33275354,96835.0,96821.0,0.2065648]
[1763112902245,0.33275354,96835.0,96813.0,0.02448]
[1763112902246,0.20655503,96827.0,96813.0,0.02448]
[1763112902498,0.20653943,96834.0,96815.0,0.20657955]
[1763112902805,0.00953092,96833.0,96814.0,0.21259409]
[1763112902949,0.00953092,96832.0,96824.0,0.20656008]
[1763112903145,0.001,96835.0,96824.0,0.03867213]
[1763112903371,0.001,96835.0,96810.0,0.01032951]
[1763112903372,0.001,96835.0,96834.0,0.01229]
[1763112903571,0.03766653,96870.0,96845.0,0.20651467]
[1763112903572,0.20648652,96859.0,96845.0,0.20651467]
[1763112903774,0.03660077,96878.0,96845.0,0.20651467]
[1763112903775,0.0285805,96858.0,96856.0,0.20649062]
[1763112903975,0.01032204,96880.0,96859.0,0.20648457]
[1763112904204,0.05527404,96903.0,96850.0,0.01032524]
[1763112904205,0.02858457,96879.0,96850.0,0.01032524]
[1763112904534,0.09761561,96902.0,96850.0,0.01032524]
[1763112904535,0.09761561,96872.0,96860.0,0.04448]
[1763112904810,0.09761561,96887.0,96852.0,0.01229]
[1763112904811,0.20646865,96868.0,96853.0,0.2064964]
[1763112904986,0.01905638,96867.0,96855.0,0.20649424]
[1763112905200,0.20646455,96869.0,96861.0,0.20648141]
[1763112905388,0.09761561,96887.0,96880.0,0.02]
[1763112905574,0.20643882,96881.0,96880.0,0.02]
[1763112905771,0.20646879,96867.0,96854.0,0.02535916]
[1763112906139,0.3841827,96890.0,96870.0,0.02]
[1763112906140,0.20644308,96879.0,96870.0,0.02]
[1763112906422,0.20645389,96874.0,96870.0,0.02]
[1763112906641,0.04341874,96873.0,96860.0,0.20648167]
[1763112906846,0.04341874,96868.0,96856.0,0.00670952]
[1763112906993,0.09761561,96879.0,96830.0,0.02032736]
[1763112906994,0.04341874,96861.0,96833.0,0.20654036]
[1763112907366,0.04341874,96861.0,96850.0,0.02]
[1763112907367,0.20650277,96851.0,96850.0,0.02]
[1763112907497,0.04341874,96852.0,96835.0,0.20653669]
[1763112907739,0.01032311,96870.0,96840.0,0.01032631]
[1763112908064,0.01032098,96890.0,96841.0,0.03517]
[1763112908065,0.20647485,96865.0,96841.0,0.03517]
[1763112908372,0.04341874,96877.0,96865.0,0.20647218]
[1763112908373,0.20644919,96877.0,96865.0,0.20647218]
[1763112908550,0.04341874,96876.0,96863.0,0.20647694]
[1763112908728,0.24986798,96877.0,96867.0,0.20646828]
[1763112908908,0.24986798,96877.0,96868.0,0.02064683]
[1763112909137,0.24986798,96877.0,96868.0,0.03282683]
[1763112909336,0.04341874,96875.0,96868.0,0.03282683]
[1763112909614,0.3841827,96890.0,96868.0,0.03282683]
[1763112909615,0.20641752,96891.0,96890.0,0.02]
[1763112909987,0.24983626,96891.0,96890.0,0.02]
[1763112910206,0.04341874,96877.0,96859.0,0.01218]
[1763112910354,0.04341874,96857.0,96845.0,0.20651556]
[1763112910565,0.001,96877.0,96850.0,0.02]
[1763112910566,0.04341874,96860.0,96850.0,0.02]
[1763112910760,0.24990445,96860.0,96850.0,0.02]
[1763112910966,0.20651503,96846.0,96841.0,0.01218]
[1763112911385,0.04341874,96858.0,96841.0,0.01218]
[1763112911585,0.04341874,96858.0,96842.0,0.02187137]
[1763112911586,0.20650802,96849.0,96842.0,0.02187137]
[1763112911787,0.04341874,96851.0,96846.0,0.20651183]
[1763112912157,0.20650677,96850.0,96844.0,0.20651692]
[1763112912354,0.04341874,96855.0,96846.0,0.20651343]
[1763112912621,0.04341874,96855.0,96853.0,0.20649694]
[1763112912775,0.04341874,96858.0,96857.0,0.20648998]
[1763112913138,0.2064533,96875.0,96854.0,0.00176858]
[1763112913344,0.2064533,96875.0,96850.0,0.03331524]
[1763112913345,0.04341874,96874.0,96855.0,0.04714815]
[1763112913463,0.38418376,96880.0,96850.0,0.03032524]
[1763112913464,0.37386172,96880.0,96850.0,0.03032524]
[1763112913663,0.38418483,96870.0,96845.0,0.02299]
[1763112914003,0.20650228,96852.0,96843.0,0.20651886]
[1763112914204,0.20650532,96850.0,96843.0,0.20651886]
[1763112914390,0.20648072,96862.0,96843.0,0.20651886]
[1763112914391,0.20648072,96862.0,96843.0,0.20651983]
[1763112914568,0.20650407,96851.0,96845.0,0.20651411]
[1763112914768,0.20650407,96851.0,96841.0,0.01218]
[1763112914769,0.20650853,96849.0,96841.0,0.01218]
[1763112914975,0.04341874,96859.0,96841.0,0.01218]
[1763112915178,0.20652067,96843.0,96841.0,0.01218]
[1763112915611,0.51048542,96883.0,96853.0,0.20649649]
[1763112915864,0.04341874,96865.0,96855.0,0.20649229]
[1763112916066,0.04341874,96861.0,96854.0,0.02223665]
[1763112916245,0.04341874,96866.0,96858.0,0.20648572]
[1763112916443,0.04341874,96866.0,96860.0,0.20648358]
[1763112916665,0.04341874,96866.0,96863.0,0.20647718]
[1763112916907,0.04341874,96866.0,96862.0,0.20647932]
[1763112917034,0.20649355,96856.0,96845.0,0.02299]
[1763112917229,0.20649649,96854.0,96846.0,0.2065132]
[1763112917484,0.001,96861.0,96846.0,0.2065132]
[1763112917485,0.24990232,96860.0,96850.0,0.02]
[1763112917634,0.2064966,96854.0,96849.0,0.20650574]
[1763112917833,0.20649417,96856.0,96849.0,0.20650574]
[1763112917834,0.20649503,96855.0,96850.0,0.20650402]
[1763112918033,0.24990247,96860.0,96851.0,0.02479905]
[1763112918034,0.04341874,96860.0,96851.0,0.02479905]
[1763112918241,0.04341874,96860.0,96858.0,0.20648692]
[1763112918457,0.04341874,96863.0,96861.0,0.20648071]
[1763112918656,0.04341874,96880.0,96860.0,0.01587]
[1763112918883,0.01032098,96890.0,96879.0,0.00109838]
[1763112918884,0.09761561,96888.0,96879.0,0.00109838]
[1763112919087,0.09761561,96888.0,96870.0,0.02299]
[1763112919328,0.38438163,96900.0,96860.0,0.32004756]
[1763112919329,0.09761561,96887.0,96864.0,0.2064738]
[1763112919534,0.04341874,96871.0,96850.0,0.03032524]
[1763112919820,0.04341874,96865.0,96856.0,0.20649143]
[1763112920024,0.20648869,96858.0,96846.0,0.20651136]
[1763112920176,0.2065017,96852.0,96840.0,0.01032631]
[1763112920381,0.04341874,96869.0,96842.0,0.01464663]
[1763112920582,0.24990019,96861.0,96860.0,0.02]
[1763112920789,0.20653618,96836.0,96827.0,0.01218]
[1763112920988,0.04341874,96847.0,96829.0,0.20654886]
[1763112920989,0.2065377,96835.0,96829.0,0.20654886]
[1763112921189,0.04341874,96843.0,96827.0,0.01218]
[1763112921397,0.04341874,96843.0,96816.0,0.21886568]
[1763112921398,0.04341874,96832.0,96810.0,0.21691951]
[1763112921609,0.04341874,96823.0,96805.0,0.12396]
[1763112921822,0.20660287,96805.0,96799.0,0.01218]
[1763112922063,0.04341874,96816.0,96799.0,0.21879157]
[1763112922221,0.04341874,96816.0,96813.0,0.20658205]
[1763112922434,0.04341874,96818.0,96800.0,0.24848859]
[1763112922607,0.04341874,96818.0,96816.0,0.20657587]
[1763112922860,0.04341874,96821.0,96816.0,0.20657587]
[1763112923037,0.04341874,96817.0,96810.0,0.20659022]
[1763112923289,0.38418803,96840.0,96820.0,0.01587]
[1763112923498,0.24996629,96830.0,96811.0,0.02299]
[1763112923704,0.04341874,96826.0,96811.0,0.02299]
[1763112923858,0.04341874,96839.0,96830.0,0.02805]
[1763112924058,0.04341874,96844.0,96836.0,0.20653299]
[1763112924262,0.04341874,96844.0,96837.0,0.20653118]
[1763112924487,0.01032524,96850.0,96831.0,0.01587]
[1763112924488,0.20651556,96845.0,96832.0,0.22953303]
[1763112924731,0.01032524,96850.0,96800.0,0.02]
[1763112924732,0.20660943,96801.0,96800.0,0.02]
[1763112924925,0.20660943,96801.0,96776.0,0.02299]
[1763112924926,0.20664642,96784.0,96781.0,0.01218]
[1763112925141,0.20664642,96784.0,96760.0,0.23033484]
[1763112925142,0.04341874,96796.0,96760.0,0.03033484]
[1763112925456,0.04341874,96784.0,96783.0,0.00367385]
[1763112926414,0.1304155,96784.0,96783.0,0.00367385]
[1763112926631,0.47243984,96784.0,96783.0,0.00367385]
[1763112927179,0.47243613,96784.0,96783.0,0.00367385]
[1763112927382,0.47243544,96784.0,96783.0,0.00367385]
[1763112928020,0.47443544,96784.0,96783.0,0.00367385]
[1763112928226,0.4724346,96784.0,96783.0,0.00367385]
[1763112928850,0.47243446,96784.0,96783.0,0.00367385]
[1763112929259,0.323,96799.0,96783.0,0.00367385]
[1763112929471,0.2066517,96782.0,96764.0,0.02299]
[1763112929680,0.20666985,96773.0,96760.0,0.01033484]
[1763112929874,0.04341874,96768.0,96761.0,0.20669484]
[1763112930085,0.2066921,96763.0,96752.0,0.02299]
[1763112930281,0.04341874,96768.0,96762.0,0.20669114]
[1763112930486,0.25009222,96771.0,96770.0,0.02]
[1763112930685,0.04341874,96758.0,96740.0,0.01033698]
[1763112930894,0.04341874,96769.0,96755.0,0.20670616]
[1763112931096,0.04341874,96766.0,96764.0,0.001]
[1763112931379,0.20667715,96770.0,96761.0,0.20669333]
[1763112931380,0.04341874,96770.0,96761.0,0.20669333]
[1763112931574,0.09761561,96766.0,96747.0,0.20672475]
[1763112931787,0.04341874,96763.0,96748.0,0.02428448]
[1763112931987,0.04341874,96765.0,96760.0,0.02]
[1763112932193,0.04341874,96761.0,96760.0,0.02]
[1763112932410,0.04341874,96761.0,96759.0,0.20669835]
[1763112932611,0.04341874,96771.0,96770.0,0.02]
[1763112933237,0.04341874,96775.0,96770.0,0.02]
[1763112933439,0.04341874,96778.0,96770.0,0.2066753]
[1763112933834,0.04341874,96778.0,96769.0,0.20667688]
[1763112934059,0.04341874,96779.0,96750.0,0.01033591]
[1763112934268,0.04341874,96779.0,96773.0,0.20666906]
[1763112934426,0.04341874,96771.0,96765.0,0.20668515]
[1763112934627,0.04341874,96771.0,96769.0,0.20667752]
[1763112934852,0.04341874,96775.0,96771.0,0.20667137]
[1763112935011,0.04341874,96775.0,96772.0,0.20666937]
[1763112935206,0.001,96779.0,96775.0,0.20666311]
[1763112935501,0.20664698,96784.0,96763.0,0.20669057]
[1763112935502,0.01033164,96790.0,96763.0,0.20669057]
[1763112935665,0.01033164,96790.0,96780.0,0.02]
[1763112935895,0.04341874,96769.0,96762.0,0.20669077]
[1763112936096,0.04341874,96768.0,96764.0,0.20668798]
[1763112936316,0.002,96771.0,96764.0,0.20668798]
[1763112936317,0.04341874,96770.0,96766.0,0.20668367]
[1763112936616,0.04341874,96770.0,96760.0,0.21702968]
[1763112936617,0.25009629,96770.0,96761.0,0.20669484]
[1763112936827,0.25009649,96770.0,96750.0,0.2170538]
[1763112937054,0.04341874,96768.0,96762.0,0.20669109]
[1763112937303,0.04341874,96768.0,96751.0,0.03772138]
[1763112937499,0.04341874,96768.0,96763.0,0.20669024]
[1763112937500,0.04341874,96767.0,96763.0,0.20669024]
[1763112937704,0.20668553,96766.0,96761.0,0.20669283]
[1763112937916,0.20668389,96767.0,96750.0,0.01033591]
[1763112938121,0.04341874,96766.0,96762.0,0.20669121]
[1763112938360,0.20666032,96778.0,96750.0,0.01033591]
[1763112938361,0.04341874,96769.0,96750.0,0.01033591]
[1763112938537,0.04341874,96769.0,96768.0,0.20667989]
[1763112938681,0.04341874,96773.0,96771.0,0.20667181]
[1763112939026,0.09761561,96774.0,96751.0,0.02394]
[1763112939027,0.04341874,96776.0,96769.0,0.20667591]
[1763112939239,0.04341874,96781.0,96777.0,0.20665861]
[1763112939432,0.20663932,96787.0,96778.0,0.20665671]
[1763112939433,0.04341874,96783.0,96778.0,0.20665671]
[1763112939581,0.04341874,96783.0,96771.0,0.01214]
[1763112939797,0.04341874,96776.0,96771.0,0.01214]
[1763112940175,0.04341874,96776.0,96773.0,0.20666894]
[1763112940375,0.04341874,96776.0,96771.0,0.01214]
[1763112940376,0.04341874,96785.0,96780.0,0.20665353]
[1763112940589,0.04341874,96776.0,96775.0,0.0038887]
[1763112940798,0.14103435,96776.0,96775.0,0.0038887]
[1763112940930,0.14303435,96776.0,96775.0,0.0038887]
[1763112941131,0.09761561,96792.0,96783.0,0.20664746]
[1763112941132,0.04341874,96788.0,96783.0,0.20664746]
[1763112941334,0.04341874,96788.0,96763.0,0.01214]
[1763112941335,0.04341874,96788.0,96786.0,0.20664075]
[1763112941533,0.09761561,96792.0,96770.0,0.01033378]
[1763112941772,0.09761561,96792.0,96790.0,0.20663156]
[1763112941958,0.04341874,96791.0,96788.0,0.20663618]
[1763112942482,0.28481722,96791.0,96790.0,0.02]
[1763112942634,0.25005165,96791.0,96790.0,0.02]
[1763112942840,0.04341874,96791.0,96790.0,0.02]
[1763112943042,0.04341874,96790.0,96786.0,0.20664049]
[1763112943243,0.04341874,96790.0,96787.0,0.20663879]
[1763112943513,0.20661677,96798.0,96785.0,0.20664265]
[1763112943514,0.55903401,96820.0,96796.0,0.20661965]
[1763112943629,0.55903401,96820.0,96785.0,0.01214]
[1763112943630,0.20662689,96793.0,96785.0,0.01214]
[1763112943834,0.04341874,96791.0,96787.0,0.2066387]
[1763112944030,0.04341874,96791.0,96789.0,0.20663409]
[1763112944492,0.002,96790.0,96789.0,0.20663409]
[1763112944669,0.04341874,96791.0,96789.0,0.20663409]
[1763112945001,0.04541874,96791.0,96789.0,0.20663409]
[1763112945238,0.04341874,96791.0,96789.0,0.20663409]
[1763112945453,0.04341874,96791.0,96790.0,0.20663291]
[1763112946331,0.30421331,96807.0,96785.0,0.03608]
[1763112946332,0.36641874,96806.0,96785.0,0.03608]
[1763112946559,0.36641874,96806.0,96789.0,0.20663505]
[1763112946560,0.04341874,96790.0,96789.0,0.20663505]
[1763112946721,0.04541874,96790.0,96789.0,0.20663505]
[1763112946934,0.04541874,96790.0,96780.0,0.03033271]
[1763112946935,0.04341874,96790.0,96780.0,0.01033271]
[1763112947153,0.181508,96791.0,96789.0,0.22213346]
[1763112947317,0.183508,96791.0,96790.0,0.03771335]
[1763112947696,0.181508,96791.0,96790.0,0.06165335]
[1763112948110,0.181508,96791.0,96790.0,0.02221335]
[1763112948669,0.182508,96791.0,96790.0,0.02221335]
[1763112948874,0.182508,96791.0,96790.0,0.04221335]
[1763112949866,0.182508,96791.0,96790.0,0.42048622]
[1763112950470,0.181508,96791.0,96790.0,0.42048622]
[1763112950688,0.181508,96791.0,96790.0,0.46048622]
[1763112950876,0.181508,96791.0,96790.0,0.04221335]
[1763112951080,0.181508,96791.0,96790.0,0.56452622]
[1763112951257,0.17648974,96791.0,96790.0,0.54452622]
[1763112951494,0.20652587,96841.0,96810.0,0.01032951]
[1763112951840,0.2065193,96844.0,96810.0,0.01032951]
[1763112951841,0.02864317,96840.0,96838.0,0.20652951]
[1763112951991,0.09761561,96846.0,96838.0,0.20652951]
[1763112951992,0.02864317,96839.0,96838.0,0.20653049]
[1763112952199,0.2064969,96854.0,96846.0,0.20651147]
[1763112952200,0.42061561,96853.0,96846.0,0.20651147]
[1763112952396,0.20649297,96856.0,96848.0,0.20650734]
[1763112952397,0.02864121,96852.0,96848.0,0.20650734]
[1763112952731,0.09761561,96869.0,96849.0,0.21864622]
[1763112952732,0.02864121,96851.0,96849.0,0.21864622]
[1763112952932,0.02864121,96850.0,96849.0,0.03279073]
[1763112953069,0.02864121,96850.0,96849.0,0.02065073]
[1763112953293,0.02864121,96850.0,96847.0,0.02394]
[1763112953498,0.04341874,96858.0,96849.0,0.0155]
[1763112953797,0.02863932,96857.0,96853.0,0.20649693]
[1763112953999,0.04341874,96855.0,96852.0,0.20649941]
[1763112954211,0.04341874,96853.0,96852.0,0.20649941]
[1763112954405,0.06251162,96853.0,96850.0,0.02394]
[1763112954771,0.01909288,96852.0,96850.0,0.23044415]
[1763112955117,0.04341874,96858.0,96836.0,0.20653466]
[1763112955319,0.04341874,96853.0,96848.0,0.2065078]
[1763112955509,0.01908371,96852.0,96848.0,0.2065078]
[1763112955705,0.20649331,96856.0,96848.0,0.2065078]
[1763112955706,0.01908371,96851.0,96849.0,0.20650507]
[1763112955916,0.04341874,96854.0,96849.0,0.22715585]
[1763112956116,0.01908361,96853.0,96849.0,0.02065078]
[1763112956316,0.001,96853.0,96850.0,0.2065049]
[1763112956881,0.20650117,96852.0,96849.0,0.02065078]
[1763112957048,0.20650394,96851.0,96850.0,0.02511082]
[1763112957515,0.55902868,96870.0,96840.0,0.01032631]
[1763112957717,0.55902868,96870.0,96820.0,0.01032844]
[1763112957718,0.04341874,96852.0,96850.0,0.02]
[1763112957921,0.04341874,96850.0,96834.0,0.20653838]
[1763112958138,0.20653224,96838.0,96835.0,0.02186784]
[1763112958341,0.20653911,96834.0,96832.0,0.01214]
[1763112959143,0.20653485,96836.0,96833.0,0.20654115]
[1763112959341,0.20653126,96838.0,96833.0,0.20653942]
[1763112959549,0.20653126,96838.0,96834.0,0.20653852]
[1763112960179,0.04341874,96853.0,96832.0,0.01214]
[1763112960353,0.20654115,96833.0,96832.0,0.01214]
[1763112960557,0.20653951,96834.0,96832.0,0.01214]
[1763112960827,0.01032631,96840.0,96821.0,0.01175]
[1763112961012,0.04341874,96827.0,96821.0,0.01175]
[1763112961216,0.20656152,96824.0,96821.0,0.01175]
[1763112961415,0.20656152,96824.0,96822.0,0.02183222]
[1763112961575,0.04341874,96835.0,96822.0,0.02183222]
[1763112961778,0.04341874,96835.0,96827.0,0.20655342]
[1763112961779,0.04341874,96832.0,96827.0,0.20655342]
[1763112962227,0.04341874,96833.0,96822.0,0.02368]
[1763112962381,0.09761561,96868.0,96850.0,0.02]
[1763112962592,0.09761561,96868.0,96851.0,0.20650193]
[1763112962593,0.09761561,96853.0,96851.0,0.20650193]
[1763112962796,0.06247043,96852.0,96851.0,0.20650193]
[1763112963003,0.04341874,96852.0,96851.0,0.20650193]
[1763112963206,0.20648263,96861.0,96855.0,0.20649359]
[1763112963418,0.20648263,96861.0,96850.0,0.20650317]
[1763112963419,0.20650064,96852.0,96851.0,0.00184903]
[1763112963791,0.04341874,96852.0,96851.0,0.2083518]
[1763112963914,0.04541874,96852.0,96851.0,0.22918698]
[1763112964270,0.04341874,96852.0,96851.0,0.22918698]
[1763112964570,0.01032204,96880.0,96860.0,0.0153]
[1763112964774,0.20646013,96871.0,96870.0,0.02]
[1763112964911,0.20645796,96873.0,96867.0,0.01175]
[1763112965115,0.04341874,96869.0,96868.0,0.02182292]
[1763112965317,0.20644632,96878.0,96868.0,0.02182292]
[1763112965518,0.01032204,96880.0,96867.0,0.01175]
[1763112965519,0.22550095,96877.0,96867.0,0.01175]
[1763112965756,0.20645567,96874.0,96867.0,0.01175]
[1763112965933,0.01032204,96880.0,96867.0,0.01175]
[1763112966147,0.20644905,96877.0,96871.0,0.20645843]
[1763112966362,0.01032204,96880.0,96868.0,0.001]
[1763112966363,0.20646152,96871.0,96868.0,0.001]
[1763112966548,0.20645304,96875.0,96868.0,0.001]
[1763112966748,0.3232,96890.0,96868.0,0.001]
[1763112966749,0.0002,96890.0,96879.0,0.20644294]
[1763112966951,0.0002,96890.0,96883.0,0.20643378]
[1763112967207,0.0002,96890.0,96889.0,0.0153]
[1763112967707,0.0002,96890.0,96889.0,0.22172178]
[1763112968405,0.0002,96890.0,96889.0,0.20642178]
[1763112969031,0.0022,96890.0,96889.0,0.20642178]
[1763112969451,0.0002,96890.0,96889.0,0.20642178]
[1763112969876,0.0022,96890.0,96889.0,0.20642178]
[1763112972117,0.0002,96890.0,96889.0,0.20642178]
[1763112972555,0.0012,96890.0,96889.0,0.53025218]
[1763112974298,6.772e-05,96890.0,96889.0,0.66986218]
[1763112974496,0.0002,96930.0,96929.0,0.20633659]
[1763112974659,0.0002,96930.0,96929.0,0.25426025]
[1763112974853,0.0002,96930.0,96929.0,0.23857025]
[1763112975058,0.0002,96930.0,96929.0,0.03223366]
[1763112976113,0.0022,96930.0,96929.0,0.03223366]
[1763112979497,0.20629917,96947.0,96943.0,0.02729]
[1763112979696,0.20630106,96946.0,96944.0,0.02336084]
[1763112980600,0.002,96947.0,96945.0,0.20630153]
[1763112981570,0.002,96947.0,96946.0,0.02409]
[1763112981772,0.323,96977.0,96951.0,0.20628921]
[1763112981985,0.09761561,96961.0,96955.0,0.01569]
[1763112982224,0.04341874,96960.0,96955.0,0.01569]
[1763112982632,0.04341874,96960.0,96946.0,0.20629916]
[1763112982633,0.04341874,96950.0,96937.0,0.0116]
[1763112982835,0.24973618,96938.0,96937.0,0.0116]
[1763112983046,0.04341874,96938.0,96937.0,0.0116]
[1763112983230,0.02735883,97006.0,96937.0,0.0116]
[1763112983231,0.30934874,96978.0,96946.0,0.01569]
[1763112983465,0.24969787,96956.0,96955.0,0.002]
[1763112983854,0.04341874,96950.0,96940.0,0.02]
[1763112983996,0.323,96969.0,96940.0,0.02]
[1763112983997,0.04341874,96952.0,96948.0,0.20629601]
[1763112984212,0.24970774,96952.0,96941.0,0.21187792]
[1763112984416,0.24970774,96952.0,96948.0,0.20629543]
[1763112984417,0.04341874,96951.0,96948.0,0.20629543]
[1763112984644,0.04341874,96951.0,96941.0,0.005569]
[1763112984863,0.04341874,96943.0,96925.0,0.02409]
[1763112985101,0.54870557,96951.0,96925.0,0.02409]
[1763112985102,0.25073816,96938.0,96932.0,0.20633006]
[1763112985244,0.04441874,96938.0,96925.0,0.02409]
[1763112985439,0.04341874,96937.0,96931.0,0.20633233]
[1763112985643,0.09761561,96936.0,96911.0,0.02433103]
[1763112986003,0.04341874,96933.0,96919.0,0.20635626]
[1763112986204,0.04341874,96921.0,96911.0,0.02433103]
[1763112986377,0.04341874,96919.0,96911.0,0.02433103]
[1763112986556,0.04341874,96919.0,96915.0,0.20636503]
[1763112986761,0.04341874,96919.0,96914.0,0.20636853]
[1763112986964,0.04341874,96919.0,96911.0,0.02433103]
[1763112986965,0.04341874,96914.0,96912.0,0.0126]
[1763112987185,0.24978812,96914.0,96912.0,0.0126]
[1763112987391,0.04341874,96914.0,96912.0,0.0126]
[1763112987566,0.04341874,96914.0,96913.0,0.02192233]
[1763112987778,0.20635035,96923.0,96915.0,0.20636462]
[1763112988009,0.04341874,96919.0,96917.0,0.20636064]
[1763112988303,0.04341874,96922.0,96918.0,0.20635825]
[1763112988506,0.24977136,96922.0,96916.0,0.20636367]
[1763112988739,0.001,96919.0,96916.0,0.20636367]
[1763112988949,0.04341874,96922.0,96919.0,0.2063568]
[1763112989156,0.04341874,96926.0,96922.0,0.01569]
[1763112989369,0.04341874,96927.0,96918.0,0.20636001]
[1763112989502,0.24979153,96912.0,96911.0,0.00024103]
[1763112991009,0.04341874,96912.0,96911.0,0.20661595]
[1763112991254,0.323,96931.0,96930.0,0.02]
[1763112991453,0.323,96931.0,96924.0,0.20634529]
[1763112991814,0.01031459,96950.0,96940.0,0.02]
[1763112991930,0.09761561,96947.0,96943.0,0.20630518]
[1763112992134,0.09761561,96947.0,96927.0,0.02265]
[1763112992440,0.20631023,96942.0,96930.0,0.20633403]
[1763112992570,0.06247768,96941.0,96940.0,0.20631297]
[1763112992775,0.06247768,96941.0,96931.0,0.0228984]
[1763112992776,0.01905894,96941.0,96937.0,0.20631828]
[1763112992973,0.04341874,96940.0,96933.0,0.20632687]
[1763112993174,0.04341874,96938.0,96935.0,0.20632308]
[1763112993386,0.57275746,96928.0,96927.0,0.001]
[1763112993781,0.04341874,96915.0,96909.0,0.20637808]
[1763112994005,0.24978577,96915.0,96910.0,0.20637546]
[1763112994224,0.24978577,96915.0,96908.0,0.20637995]
[1763112994398,0.04341874,96914.0,96907.0,0.20638293]
[1763112994599,0.04341874,96914.0,96912.0,0.0206624]
[1763112994600,0.24979,96913.0,96912.0,0.0206624]
[1763112995002,0.04341874,96913.0,96912.0,0.0206624]
[1763112995186,0.04341874,96913.0,96908.0,0.20638031]
[1763112995187,0.04341874,96912.0,96908.0,0.20638031]
[1763112995388,0.37279252,96922.0,96903.0,0.01229]
[1763112995389,0.04341874,96928.0,96903.0,0.01229]
[1763112995627,0.04341874,96924.0,96921.0,0.20635316]
[1763112995823,0.04341874,96922.0,96904.0,0.2063897]
[1763112996031,0.20635788,96919.0,96910.0,0.02]
[1763112996242,0.04341874,96918.0,96916.0,0.20636367]
[1763112996480,0.04341874,96918.0,96903.0,0.01229]
[1763112996481,0.0002,96970.0,96953.0,0.20628551]
[1763112996745,0.02867689,96954.0,96953.0,0.22137551]
[1763112996993,0.02867689,96954.0,96953.0,0.25028104]
[1763112997228,0.0002,96970.0,96969.0,0.20625148]
[1763112997466,0.00976388,96970.0,96969.0,0.20625148]
[1763112997922,0.01932776,96970.0,96969.0,0.20625148]
[1763112999345,0.0012,96970.0,96969.0,0.20625148]
[1763112999573,0.02033983,96970.0,96969.0,0.20625148]
[1763112999781,0.04341874,96987.0,96969.0,0.20625148]
[1763112999782,0.02204204,96987.0,96986.0,0.20621533]
[1763112999921,0.0002,96990.0,96986.0,0.20621533]
[1763112999922,0.0002,96990.0,96989.0,0.20620895]
[1763113000126,0.0002,96990.0,96989.0,0.22885895]
[1763113000325,0.01934083,96990.0,96989.0,0.20620895]
[1763113000549,0.02891124,96990.0,96989.0,0.20620895]
[1763113000758,0.0002,96990.0,96989.0,0.20620895]
[1763113002372,0.0002,96990.0,96988.0,0.20620984]
[1763113002755,0.0002,96990.0,96985.0,0.20621745]
[1763113002756,0.04341874,96989.0,96985.0,0.20621745]
[1763113002978,0.04341874,96987.0,96962.0,0.03494]
[1763113003220,0.04341874,96983.0,96976.0,0.20623527]
[1763113003449,0.04341874,96983.0,96979.0,0.02185253]
[1763113003709,0.04341874,96985.0,96979.0,0.22808061]
[1763113003878,0.04341874,96985.0,96983.0,0.20621995]
[1763113004116,0.0002,96990.0,96980.0,0.04265]
[1763113004270,0.0002,96990.0,96983.0,0.20622034]
[1763113004478,0.04341874,96988.0,96986.0,0.20621417]
[1763113004692,0.0002,96990.0,96986.0,0.20621417]
[1763113004693,0.04361874,96990.0,96987.0,0.20621181]
[1763113004889,0.24982663,96990.0,96984.0,0.20621823]
[1763113005133,0.04341874,96988.0,96983.0,0.20622041]
[1763113005285,0.04341874,96988.0,96980.0,0.20622672]
[1763113005286,0.04341874,96986.0,96980.0,0.20622672]
[1763113005495,0.04341874,96986.0,96983.0,0.2062217]
[1763113005701,0.04341874,96988.0,96984.0,0.20621768]
[1763113006189,0.04341874,96986.0,96977.0,0.2062343]
[1763113006427,0.04341874,96986.0,96971.0,0.02265]
[1763113006428,0.04341874,96984.0,96981.0,0.20622596]
[1763113006836,0.04341874,96986.0,96976.0,0.20623543]
[1763113007095,0.04341874,96987.0,96979.0,0.22808062]
[1763113007304,0.04341874,96987.0,96984.0,0.20621873]
[1763113007513,0.0002,96990.0,96989.0,0.20620895]
[1763113007922,0.0002,96990.0,96973.0,0.02265]
[1763113008139,0.04341874,96985.0,96981.0,0.00541425]
[1763113008322,0.04341874,96985.0,96973.0,0.02265]
[1763113008323,0.24963694,96985.0,96979.0,0.20622596]
[1763113008486,0.24963758,96985.0,96979.0,0.20622596]
[1763113008965,0.04341874,96988.0,96981.0,0.20622446]
[1763113009169,0.04341874,96988.0,96986.0,0.20621424]
[1763113009290,0.04341874,96989.0,96986.0,0.20621424]
[1763113009486,0.0002,96990.0,96989.0,0.20620895]
[1763113011887,0.04561874,96990.0,96989.0,0.20620895]
[1763113012099,0.04361874,96990.0,96989.0,0.20620895]
[1763113012576,0.04461874,96990.0,96989.0,0.20620895]
[1763113014452,0.0012,96990.0,96989.0,0.20620895]
[1763113017263,0.0012,96990.0,96989.0,0.33000895]
[1763113018449,0.0012,96990.0,96989.0,0.34000895]
[1763113020648,0.0002,96990.0,96989.0,0.34000895]
[1763113020899,0.0002,96990.0,96989.0,0.21620895]
[1763113021101,0.0002,96990.0,96989.0,0.01]
[1763113021342,0.04361874,96990.0,96989.0,0.01]
[1763113021558,0.24982556,96990.0,96989.0,0.01]
[1763113021903,0.04366428,96990.0,96989.0,0.01]
[1763113022257,0.04466428,96990.0,96989.0,0.01]
[1763113022461,0.36666428,96990.0,96989.0,0.01]
[1763113023145,0.36866428,96990.0,96989.0,0.01]
[1763113023392,0.36866428,96990.0,96989.0,0.00233574]
[1763113023600,0.36866428,96990.0,96940.0,0.01031565]
[1763113023601,0.04341874,96969.0,96940.0,0.01031565]
[1763113023810,0.04341874,96959.0,96940.0,0.01031565]
[1763113023931,0.04341874,96948.0,96942.0,0.01149]
[1763113024133,0.04341874,96944.0,96943.0,0.0228115]
[1763113024339,0.20630365,96945.0,96942.0,0.01149]
[1763113024340,0.04341874,96943.0,96942.0,0.01149]
[1763113025044,0.04341874,96942.0,96932.0,0.02354]
[1763113025249,0.24977247,96943.0,96930.0,0.22633395]
[1763113025250,0.20631531,96941.0,96930.0,0.22633395]